[Event "*** Titled Tuesday Blitz"]
[Site "Chess.com"]
[Date "2020.04.07"]
[Round "5"]
[White "vugarrasulov"]
[Black "Gennady_Kozlov"]
[Result "1/2-1/2"]
[WhiteElo "2763"]
[BlackElo "2600"]
[TimeControl "180+1"]
[EndTime "13:58:51 PDT"]
[Termination "Game drawn by repetition"]

1. e4 {[%clk 0:03:00.9]} 1... e6 {[%clk 0:02:59.2]} 2. d4 {[%clk 0:03:00.5]}
2... d5 {[%clk 0:02:57.6]} 3. Nd2 {[%clk 0:03:00.9]} 3... dxe4 {[%clk
0:02:56.1]} 4. Nxe4 {[%clk 0:03:00.6]} 4... Nd7 {[%clk 0:02:57]} 5. g3 {[%clk
0:03:00.7]} 5... Ngf6 {[%clk 0:02:57.2]} 6. Nxf6+ {[%clk 0:03:01.2]} 6... Nxf6
{[%clk 0:02:56.5]} 7. Bg2 {[%clk 0:03:02.1]} 7... c5 {[%clk 0:02:57]} 8. Nf3
{[%clk 0:03:02.4]} 8... cxd4 {[%clk 0:02:52.8]} 9. Qxd4 {[%clk 0:03:02]} 9...
Qxd4 {[%clk 0:02:51.1]} 10. Nxd4 {[%clk 0:03:02.9]} 10... Bc5 {[%clk 0:02:51.1]}
11. Nb3 {[%clk 0:03:02]} 11... Bb6 {[%clk 0:02:49.8]} 12. c4 {[%clk 0:03:01.8]}
12... a5 {[%clk 0:02:40.4]} 13. a4 {[%clk 0:02:51.3]} 13... Nd7 {[%clk
0:02:37.1]} 14. O-O {[%clk 0:02:51.1]} 14... Nc5 {[%clk 0:02:33.6]} 15. Nd4
{[%clk 0:02:49.5]} 15... Bd7 {[%clk 0:02:31.7]} 16. Nb5 {[%clk 0:02:48.3]} 16...
Ke7 {[%clk 0:02:23.2]} 17. Bf4 {[%clk 0:02:38.2]} 17... Bxb5 {[%clk 0:02:22]}
18. axb5 {[%clk 0:02:34.9]} 18... Rhd8 {[%clk 0:02:15.5]} 19. Be3 {[%clk
0:02:25.1]} 19... Rab8 {[%clk 0:01:45.6]} 20. Rxa5 {[%clk 0:02:16.4]} 20... Bxa5
{[%clk 0:01:41.8]} 21. Bxc5+ {[%clk 0:02:16.4]} 21... Kf6 {[%clk 0:01:41.2]} 22.
b4 {[%clk 0:02:13.7]} 22... Bc7 {[%clk 0:01:40.6]} 23. Ba7 {[%clk 0:02:13.8]}
23... Ra8 {[%clk 0:01:19.9]} 24. b6 {[%clk 0:02:13.2]} 24... Bb8 {[%clk
0:01:19.4]} 25. Bxb7 {[%clk 0:02:07.5]} 25... Bxa7 {[%clk 0:01:20.3]} 26. Bxa8
{[%clk 0:02:05.4]} 26... Bxb6 {[%clk 0:01:20.4]} 27. Bf3 {[%clk 0:02:03.4]}
27... Rd3 {[%clk 0:01:16.9]} 28. Be4 {[%clk 0:01:44.9]} 28... Rd4 {[%clk
0:01:10.7]} 29. Bc6 {[%clk 0:01:21.7]} 29... Rxc4 {[%clk 0:01:10.6]} 30. b5
{[%clk 0:01:22.6]} 30... Rc2 {[%clk 0:01:10.1]} 31. Kg2 {[%clk 0:01:22.5]} 31...
e5 {[%clk 0:01:08.8]} 32. Kf3 {[%clk 0:01:22.3]} 32... Ke6 {[%clk 0:01:05.5]}
33. Be4 {[%clk 0:01:16.7]} 33... Rc3+ {[%clk 0:00:59.3]} 34. Kg2 {[%clk
0:01:06.7]} 34... f5 {[%clk 0:00:59.2]} 35. Bb1 {[%clk 0:01:00.5]} 35... e4
{[%clk 0:00:53.9]} 36. Rd1 {[%clk 0:00:57.7]} 36... Ke5 {[%clk 0:00:53.9]} 37.
Ba2 {[%clk 0:00:51.4]} 37... Bd4 {[%clk 0:00:44.1]} 38. Rd2 {[%clk 0:00:37.9]}
38... Rc5 {[%clk 0:00:35.8]} 39. f4+ {[%clk 0:00:35]} 39... exf3+ {[%clk
0:00:34.8]} 40. Kxf3 {[%clk 0:00:35.9]} 40... Rxb5 {[%clk 0:00:33.9]} 41. Re2+
{[%clk 0:00:36.4]} 41... Kd6 {[%clk 0:00:26.3]} 42. Re6+ {[%clk 0:00:36.8]}
42... Kd7 {[%clk 0:00:26.5]} 43. Ra6 {[%clk 0:00:35.6]} 43... Bf6 {[%clk
0:00:22.2]} 44. Bg8 {[%clk 0:00:29.1]} 44... h6 {[%clk 0:00:21]} 45. h4 {[%clk
0:00:28.3]} 45... Rb4 {[%clk 0:00:20.5]} 46. Be6+ {[%clk 0:00:27.1]} 46... Ke7
{[%clk 0:00:21]} 47. Bxf5 {[%clk 0:00:28]} 47... Rb3+ {[%clk 0:00:21.6]} 48. Kg4
{[%clk 0:00:26.5]} 48... Rb4+ {[%clk 0:00:20]} 49. Kh5 {[%clk 0:00:25.9]} 49...
Rb3 {[%clk 0:00:19.9]} 50. Kg4 {[%clk 0:00:17.4]} 50... Rb4+ {[%clk 0:00:19.9]}
51. Kh3 {[%clk 0:00:17.9]} 51... Rb3 {[%clk 0:00:20.1]} 52. Re6+ {[%clk
0:00:16.6]} 52... Kf7 {[%clk 0:00:20.2]} 53. Re2 {[%clk 0:00:16]} 53... Rc3
{[%clk 0:00:20.4]} 54. Be6+ {[%clk 0:00:15.6]} 54... Kg6 {[%clk 0:00:20.4]} 55.
Kg4 {[%clk 0:00:14.9]} 55... h5+ {[%clk 0:00:20.4]} 56. Kf4 {[%clk 0:00:15.3]}
56... Bd8 {[%clk 0:00:21]} 57. Bf5+ {[%clk 0:00:15.2]} 57... Kf6 {[%clk
0:00:20.5]} 58. Re6+ {[%clk 0:00:15.2]} 58... Kf7 {[%clk 0:00:21]} 59. Ra6
{[%clk 0:00:10.1]} 59... Bc7+ {[%clk 0:00:21.5]} 60. Kg5 {[%clk 0:00:09.9]}
60... Rc5 {[%clk 0:00:19.1]} 61. g4 {[%clk 0:00:05.6]} 61... g6 {[%clk
0:00:16.9]} 62. Rxg6 {[%clk 0:00:04.7]} 62... hxg4 {[%clk 0:00:16.1]} 63. Kxg4
{[%clk 0:00:05.6]} 63... Rc4+ {[%clk 0:00:14.9]} 64. Kh5 {[%clk 0:00:06.1]}
64... Bd8 {[%clk 0:00:15]} 65. Be6+ {[%clk 0:00:06.5]} 65... Ke7 {[%clk
0:00:14.6]} 66. Bg4 {[%clk 0:00:06.9]} 66... Rc5+ {[%clk 0:00:14.1]} 67. Kh6
{[%clk 0:00:06.4]} 67... Kf7 {[%clk 0:00:14.4]} 68. h5 {[%clk 0:00:05.1]} 68...
Bg5+ {[%clk 0:00:13.1]} 69. Kh7 {[%clk 0:00:03]} 69... Bf6 {[%clk 0:00:12]} 70.
Be6+ {[%clk 0:00:03.3]} 70... Kxe6 {[%clk 0:00:10.6]} 71. h6 {[%clk 0:00:04]}
71... Kf7 {[%clk 0:00:10.8]} 72. Rg2 {[%clk 0:00:04]} 72... Rh5 {[%clk
0:00:10.2]} 73. Rf2 {[%clk 0:00:03.4]} 73... Rh4 {[%clk 0:00:10.3]} 74. Rf3
{[%clk 0:00:03.6]} 74... Rh5 {[%clk 0:00:10.6]} 75. Rf2 {[%clk 0:00:03.8]} 75...
Re5 {[%clk 0:00:11.1]} 76. Rg2 {[%clk 0:00:03.7]} 76... Re8 {[%clk 0:00:11.5]}
77. Rg8 {[%clk 0:00:04.2]} 77... Re7 {[%clk 0:00:10.5]} 78. Rg2 {[%clk
0:00:03.1]} 78... Ke6+ {[%clk 0:00:09.6]} 79. Kg6 {[%clk 0:00:02.8]} 79... Re8
{[%clk 0:00:09.8]} 80. h7 {[%clk 0:00:03.2]} 80... Rf8 {[%clk 0:00:09]} 81. Re2+
{[%clk 0:00:03.5]} 81... Kd7 {[%clk 0:00:09.1]} 82. Rf2 {[%clk 0:00:02.8]} 82...
Ke7 {[%clk 0:00:09.4]} 83. Re2+ {[%clk 0:00:03.1]} 83... Kd7 {[%clk 0:00:09.3]}
84. Rf2 {[%clk 0:00:03.5]} 84... Ke7 {[%clk 0:00:09.4]} 85. Ra2 {[%clk
0:00:03.4]} 85... Be5 {[%clk 0:00:06.3]} 86. Ra7+ {[%clk 0:00:02.8]} 86... Ke6
{[%clk 0:00:06.3]} 87. Ra6+ {[%clk 0:00:03.4]} 87... Bd6 {[%clk 0:00:06.3]} 88.
Kg7 {[%clk 0:00:03.3]} 88... Rf7+ {[%clk 0:00:06.9]} 89. Kg6 {[%clk 0:00:03.7]}
89... Rf6+ {[%clk 0:00:07]} 90. Kg5 {[%clk 0:00:03.8]} 90... Rf5+ {[%clk
0:00:07.2]} 91. Kg6 {[%clk 0:00:03.7]} 91... Rf6+ {[%clk 0:00:07.8]} 92. Kh5
{[%clk 0:00:03.8]} 92... Rf5+ {[%clk 0:00:08]} 93. Kg6 {[%clk 0:00:04.3]} 93...
Rf6+ {[%clk 0:00:08.4]} 1/2-1/2

[Event "*** Titled Tuesday Blitz"]
[Site "Chess.com"]
[Date "2020.04.07"]
[Round "5"]
[White "troisi"]
[Black "Berant"]
[Result "1/2-1/2"]
[WhiteElo "2044"]
[BlackElo "2284"]
[TimeControl "180+1"]
[EndTime "13:58:59 PDT"]
[Termination "Game drawn by repetition"]

1. e4 {[%clk 0:02:56.6]} 1... c5 {[%clk 0:02:58.8]} 2. c3 {[%clk 0:02:54.4]}
2... Nf6 {[%clk 0:02:58]} 3. e5 {[%clk 0:02:53.2]} 3... Nd5 {[%clk 0:02:57.7]}
4. Nf3 {[%clk 0:02:52.7]} 4... Nc6 {[%clk 0:02:56.8]} 5. d4 {[%clk 0:02:53]}
5... cxd4 {[%clk 0:02:56.7]} 6. cxd4 {[%clk 0:02:53.9]} 6... d6 {[%clk
0:02:55.4]} 7. Bc4 {[%clk 0:02:53.2]} 7... e6 {[%clk 0:02:55.8]} 8. O-O {[%clk
0:02:51]} 8... Nb6 {[%clk 0:02:55.9]} 9. Bb5 {[%clk 0:02:37.9]} 9... dxe5 {[%clk
0:02:53.7]} 10. Nxe5 {[%clk 0:02:34.9]} 10... Bd7 {[%clk 0:02:51]} 11. Nxd7
{[%clk 0:02:22]} 11... Qxd7 {[%clk 0:02:49.9]} 12. Nc3 {[%clk 0:02:22.6]} 12...
Be7 {[%clk 0:02:43.5]} 13. Be3 {[%clk 0:02:07.9]} 13... O-O {[%clk 0:02:41.3]}
14. Qg4 {[%clk 0:02:06.8]} 14... Nd5 {[%clk 0:02:35.8]} 15. Bg5 {[%clk
0:02:00.2]} 15... Bxg5 {[%clk 0:02:28.6]} 16. Qxg5 {[%clk 0:01:58.9]} 16... h6
{[%clk 0:02:21.7]} 17. Qh4 {[%clk 0:01:54.8]} 17... Qe7 {[%clk 0:02:16.4]} 18.
Qe4 {[%clk 0:01:45.3]} 18... Nxc3 {[%clk 0:02:13.9]} 19. bxc3 {[%clk 0:01:46.2]}
19... Rac8 {[%clk 0:02:11.3]} 20. Bd3 {[%clk 0:01:39.6]} 20... g6 {[%clk
0:02:11.1]} 21. Rfe1 {[%clk 0:01:33]} 21... Qg5 {[%clk 0:02:05]} 22. Re3 {[%clk
0:01:31]} 22... Ne7 {[%clk 0:02:01.7]} 23. Rg3 {[%clk 0:01:20.3]} 23... Qd2
{[%clk 0:01:53.4]} 24. Qxb7 {[%clk 0:01:10.4]} 24... Qxc3 {[%clk 0:01:28.2]} 25.
Rd1 {[%clk 0:00:51.5]} 25... Rc7 {[%clk 0:01:25.4]} 26. Qe4 {[%clk 0:00:43.8]}
26... Qc6 {[%clk 0:01:15.6]} 27. Qf4 {[%clk 0:00:41.1]} 27... h5 {[%clk
0:00:53.6]} 28. Qh6 {[%clk 0:00:35]} 28... Nf5 {[%clk 0:00:52.3]} 29. Bxf5
{[%clk 0:00:33.3]} 29... exf5 {[%clk 0:00:51.1]} 30. Qxh5 {[%clk 0:00:32.1]}
30... Qc2 {[%clk 0:00:45.5]} 31. h3 {[%clk 0:00:13.6]} 31... f4 {[%clk
0:00:37.5]} 32. Rg5 {[%clk 0:00:12.8]} 32... Rfc8 {[%clk 0:00:24.8]} 33. Qf3
{[%clk 0:00:09.3]} 33... Qxd1+ {[%clk 0:00:23.4]} 34. Qxd1 {[%clk 0:00:09]}
34... Rc1 {[%clk 0:00:24.3]} 35. Qxc1 {[%clk 0:00:09.6]} 35... Rxc1+ {[%clk
0:00:24.3]} 36. Kh2 {[%clk 0:00:10.5]} 36... Rc2 {[%clk 0:00:23.7]} 37. Ra5
{[%clk 0:00:10.6]} 37... Rxf2 {[%clk 0:00:22.8]} 38. Rxa7 {[%clk 0:00:10.4]}
38... f3 {[%clk 0:00:23.2]} 39. Kg3 {[%clk 0:00:09.5]} 39... Rxg2+ {[%clk
0:00:22.5]} 40. Kxf3 {[%clk 0:00:09.9]} 40... Rd2 {[%clk 0:00:23.1]} 41. Ke4
{[%clk 0:00:10]} 41... Rh2 {[%clk 0:00:22.5]} 42. a4 {[%clk 0:00:10]} 42... Rxh3
{[%clk 0:00:22.7]} 43. a5 {[%clk 0:00:10.9]} 43... Ra3 {[%clk 0:00:21.8]} 44. a6
{[%clk 0:00:11]} 44... Kg7 {[%clk 0:00:21.4]} 45. Ke5 {[%clk 0:00:11.6]} 45...
g5 {[%clk 0:00:19.4]} 46. Kf5 {[%clk 0:00:11.7]} 46... Ra5+ {[%clk 0:00:18.9]}
47. Ke4 {[%clk 0:00:11.1]} 47... Kg6 {[%clk 0:00:18.6]} 48. d5 {[%clk
0:00:10.8]} 48... f5+ {[%clk 0:00:16.3]} 49. Ke5 {[%clk 0:00:10.9]} 49... g4
{[%clk 0:00:16.8]} 50. Ra8 {[%clk 0:00:10.7]} 50... g3 {[%clk 0:00:14.1]} 51. a7
{[%clk 0:00:11.1]} 51... Kg7 {[%clk 0:00:13]} 52. Rb8 {[%clk 0:00:07.8]} 52...
Rxa7 {[%clk 0:00:12.5]} 53. Rb3 {[%clk 0:00:08.4]} 53... Re7+ {[%clk 0:00:09.4]}
54. Kxf5 {[%clk 0:00:08.3]} 54... Kf7 {[%clk 0:00:09.2]} 55. Rxg3 {[%clk
0:00:07.6]} 55... Re1 {[%clk 0:00:09.1]} 56. Rb3 {[%clk 0:00:07]} 56... Ke7
{[%clk 0:00:09.1]} 57. Rb6 {[%clk 0:00:07.2]} 57... Kd7 {[%clk 0:00:09.3]} 58.
Ra6 {[%clk 0:00:07.2]} 58... Re2 {[%clk 0:00:09.5]} 59. Rh6 {[%clk 0:00:07.1]}
59... Re8 {[%clk 0:00:09.4]} 60. Re6 {[%clk 0:00:05.8]} 60... Rh8 {[%clk
0:00:06.5]} 61. Ke5 {[%clk 0:00:04.9]} 61... Rh5+ {[%clk 0:00:06.1]} 62. Kd4
{[%clk 0:00:05.1]} 62... Rh1 {[%clk 0:00:06.3]} 63. Rg6 {[%clk 0:00:05]} 63...
Rd1+ {[%clk 0:00:06.6]} 64. Kc4 {[%clk 0:00:05.5]} 64... Rc1+ {[%clk 0:00:06.2]}
65. Kd3 {[%clk 0:00:06]} 65... Rd1+ {[%clk 0:00:06.3]} 66. Ke4 {[%clk
0:00:06.9]} 66... Re1+ {[%clk 0:00:06.2]} 67. Kf5 {[%clk 0:00:07.5]} 67... Re2
{[%clk 0:00:06.1]} 68. Ra6 {[%clk 0:00:07]} 68... Rf2+ {[%clk 0:00:05.4]} 69.
Ke4 {[%clk 0:00:07.1]} 69... Re2+ {[%clk 0:00:05.6]} 70. Kd3 {[%clk 0:00:07.6]}
70... Re1 {[%clk 0:00:06]} 71. Rf6 {[%clk 0:00:06.7]} 71... Rd1+ {[%clk
0:00:05.8]} 72. Kc4 {[%clk 0:00:07.3]} 72... Rc1+ {[%clk 0:00:06]} 73. Kd4
{[%clk 0:00:07.6]} 73... Rd1+ {[%clk 0:00:05.9]} 74. Kc5 {[%clk 0:00:08.2]}
74... Rc1+ {[%clk 0:00:05.9]} 75. Kb4 {[%clk 0:00:08.7]} 75... Rb1+ {[%clk
0:00:05.1]} 76. Kc3 {[%clk 0:00:08.5]} 76... Rc1+ {[%clk 0:00:05]} 77. Kd3
{[%clk 0:00:07.9]} 77... Rd1+ {[%clk 0:00:05.1]} 78. Ke4 {[%clk 0:00:08.3]}
78... Re1+ {[%clk 0:00:05.1]} 79. Kd4 {[%clk 0:00:08.7]} 79... Rd1+ {[%clk
0:00:05.4]} 80. Ke5 {[%clk 0:00:08.5]} 80... Re1+ {[%clk 0:00:04.9]} 81. Kf4
{[%clk 0:00:08.9]} 81... Rf1+ {[%clk 0:00:04.2]} 82. Ke5 {[%clk 0:00:09.5]}
82... Re1+ {[%clk 0:00:04.1]} 83. Kd4 {[%clk 0:00:09.3]} 83... Rd1+ {[%clk
0:00:04.3]} 1/2-1/2

[Event "*** Titled Tuesday Blitz"]
[Site "Chess.com"]
[Date "2020.04.07"]
[Round "5"]
[White "bangchess21"]
[Black "Antipov_Mikhail_Al"]
[Result "0-1"]
[WhiteElo "2645"]
[BlackElo "2952"]
[TimeControl "180+1"]
[EndTime "13:59:29 PDT"]
[Termination "Antipov_Mikhail_Al won by checkmate"]

1. d4 {[%clk 0:03:00.9]} 1... Nf6 {[%clk 0:02:59.8]} 2. Bf4 {[%clk 0:03:00.4]}
2... c6 {[%clk 0:02:59.3]} 3. Nf3 {[%clk 0:02:57.2]} 3... Qb6 {[%clk 0:02:59.4]}
4. Bc1 {[%clk 0:02:51.2]} 4... g6 {[%clk 0:02:53.7]} 5. g3 {[%clk 0:02:50.5]}
5... Bg7 {[%clk 0:02:53.5]} 6. Bg2 {[%clk 0:02:50.9]} 6... O-O {[%clk
0:02:53.8]} 7. c4 {[%clk 0:02:50.4]} 7... d5 {[%clk 0:02:45.5]} 8. O-O {[%clk
0:02:42.8]} 8... dxc4 {[%clk 0:02:24.2]} 9. Qc2 {[%clk 0:02:39.4]} 9... c5
{[%clk 0:02:17.3]} 10. Qxc4 {[%clk 0:02:24.9]} 10... cxd4 {[%clk 0:02:17]} 11.
Nxd4 {[%clk 0:02:24.6]} 11... Rd8 {[%clk 0:02:03.3]} 12. Nb5 {[%clk 0:02:04.2]}
12... Be6 {[%clk 0:00:42.6]} 13. Qc7 {[%clk 0:02:03.4]} 13... Nc6 {[%clk
0:00:43.2]} 14. Qxb6 {[%clk 0:01:58.8]} 14... axb6 {[%clk 0:00:44.1]} 15. Nc7
{[%clk 0:01:51.3]} 15... Rxa2 {[%clk 0:00:42]} 16. Rxa2 {[%clk 0:01:33.9]} 16...
Bxa2 {[%clk 0:00:41.5]} 17. Nc3 {[%clk 0:01:34.8]} 17... Bc4 {[%clk 0:00:30.8]}
18. Be3 {[%clk 0:01:34.8]} 18... Rc8 {[%clk 0:00:29.3]} 19. N7d5 {[%clk
0:00:55.4]} 19... Nxd5 {[%clk 0:00:26]} 20. Nxd5 {[%clk 0:00:55.4]} 20... Bxd5
{[%clk 0:00:21.4]} 21. Bxd5 {[%clk 0:00:56.3]} 21... Bxb2 {[%clk 0:00:22]} 22.
Rb1 {[%clk 0:00:56.6]} 22... Bd4 {[%clk 0:00:10.5]} 23. Bxc6 {[%clk 0:00:14.9]}
23... Bxe3 {[%clk 0:00:10.3]} 24. Bxb7 {[%clk 0:00:13.9]} 24... Rc7 {[%clk
0:00:10.7]} 25. Bd5 {[%clk 0:00:11.9]} 25... Bc5 {[%clk 0:00:11.2]} 26. e3
{[%clk 0:00:12.3]} 26... e6 {[%clk 0:00:11.3]} 27. Be4 {[%clk 0:00:11]} 27...
Ra7 {[%clk 0:00:08.9]} 28. Kg2 {[%clk 0:00:09.7]} 28... Ra2 {[%clk 0:00:08.5]}
29. Kf3 {[%clk 0:00:10.2]} 29... Kg7 {[%clk 0:00:07]} 30. h4 {[%clk 0:00:10]}
30... Rd2 {[%clk 0:00:06.6]} 31. Rb3 {[%clk 0:00:08.7]} 31... f5 {[%clk
0:00:06.6]} 32. Bd3 {[%clk 0:00:09]} 32... e5 {[%clk 0:00:06.9]} 33. Bb5 {[%clk
0:00:08.4]} 33... e4+ {[%clk 0:00:07]} 34. Kg2 {[%clk 0:00:08.7]} 34... h6
{[%clk 0:00:05.4]} 35. Bc4 {[%clk 0:00:07.3]} 35... g5 {[%clk 0:00:03.9]} 36.
hxg5 {[%clk 0:00:08.2]} 36... hxg5 {[%clk 0:00:04.8]} 37. Bb5 {[%clk 0:00:06.3]}
37... Kf6 {[%clk 0:00:04.9]} 38. Kf1 {[%clk 0:00:06.3]} 38... f4 {[%clk
0:00:04.3]} 39. gxf4 {[%clk 0:00:06.1]} 39... gxf4 {[%clk 0:00:05.2]} 40. Bc6
{[%clk 0:00:07]} 40... fxe3 {[%clk 0:00:02.9]} 41. fxe3 {[%clk 0:00:06.4]} 41...
Ke5 {[%clk 0:00:03.4]} 42. Ke1 {[%clk 0:00:06.7]} 42... Rd6 {[%clk 0:00:03.6]}
43. Bb5 {[%clk 0:00:06.5]} 43... Rh6 {[%clk 0:00:04.2]} 44. Be2 {[%clk
0:00:06.2]} 44... Rh1+ {[%clk 0:00:04.3]} 45. Kd2 {[%clk 0:00:06.7]} 45... Rh2
{[%clk 0:00:04.6]} 46. Rb5 {[%clk 0:00:07.6]} 46... Kd5 {[%clk 0:00:04.1]} 47.
Rb3 {[%clk 0:00:07.4]} 47... Kc6 {[%clk 0:00:03.9]} 48. Rb1 {[%clk 0:00:06.4]}
48... b5 {[%clk 0:00:02.8]} 49. Kd1 {[%clk 0:00:04.6]} 49... Rh1+ {[%clk
0:00:01.6]} 50. Kc2 {[%clk 0:00:05]} 50... Rh2 {[%clk 0:00:02.5]} 51. Kd1 {[%clk
0:00:04.7]} 51... b4 {[%clk 0:00:02.9]} 52. Kd2 {[%clk 0:00:04.3]} 52... Kb6
{[%clk 0:00:03]} 53. Rb3 {[%clk 0:00:04.6]} 53... Kc6 {[%clk 0:00:03.5]} 54. Rb1
{[%clk 0:00:05]} 54... Kd5 {[%clk 0:00:04.1]} 55. Rd1 {[%clk 0:00:04.9]} 55...
Bd6 {[%clk 0:00:04]} 56. Rb1 {[%clk 0:00:05.2]} 56... Kc5 {[%clk 0:00:03.9]} 57.
Kd1 {[%clk 0:00:05.3]} 57... Rh1+ {[%clk 0:00:03.6]} 58. Kc2 {[%clk 0:00:05.8]}
58... Rh2 {[%clk 0:00:04.5]} 59. Kd2 {[%clk 0:00:06.2]} 59... Be5 {[%clk
0:00:05.1]} 60. Rb3 {[%clk 0:00:06]} 60... Bc3+ {[%clk 0:00:05.3]} 61. Kd1
{[%clk 0:00:06.4]} 61... Kd5 {[%clk 0:00:05.2]} 62. Ba6 {[%clk 0:00:05.9]} 62...
Rh1+ {[%clk 0:00:04]} 63. Ke2 {[%clk 0:00:06.2]} 63... Rh2+ {[%clk 0:00:04.9]}
64. Kd1 {[%clk 0:00:06.2]} 64... Kc5 {[%clk 0:00:05.2]} 65. Bb7 {[%clk
0:00:06.1]} 65... Rh4 {[%clk 0:00:04.5]} 66. Ke2 {[%clk 0:00:06]} 66... Kc4
{[%clk 0:00:04.5]} 67. Rb1 {[%clk 0:00:05.1]} 67... Rh2+ {[%clk 0:00:05]} 68.
Kd1 {[%clk 0:00:06]} 68... Rh1+ {[%clk 0:00:05.8]} 69. Kc2 {[%clk 0:00:06.3]}
69... b3+ {[%clk 0:00:06.2]} 70. Rxb3 {[%clk 0:00:06.7]} 70... Rh2+ {[%clk
0:00:07.1]} 71. Kd1 {[%clk 0:00:07]} 71... Kxb3 {[%clk 0:00:08]} 72. Bd5+ {[%clk
0:00:07.9]} 72... Kb4 {[%clk 0:00:07.6]} 73. Bxe4 {[%clk 0:00:08.8]} 73... Rd2+
{[%clk 0:00:08.3]} 74. Kc1 {[%clk 0:00:08.2]} 74... Re2 {[%clk 0:00:08.5]} 75.
Kd1 {[%clk 0:00:07.9]} 75... Rxe3 {[%clk 0:00:09.4]} 76. Bd5 {[%clk 0:00:07.4]}
76... Kc5 {[%clk 0:00:07.8]} 77. Bb3 {[%clk 0:00:06.8]} 77... Kd4 {[%clk
0:00:08.7]} 78. Kc2 {[%clk 0:00:06.9]} 78... Re2+ {[%clk 0:00:08.8]} 79. Kc1
{[%clk 0:00:07.2]} 79... Rb2 {[%clk 0:00:09.7]} 80. Ba4 {[%clk 0:00:07.7]} 80...
Rd2 {[%clk 0:00:08.3]} 81. Bd7 {[%clk 0:00:08.6]} 81... Kc4 {[%clk 0:00:08.2]}
82. Bf5 {[%clk 0:00:09.5]} 82... Bb4 {[%clk 0:00:07.4]} 83. Be6+ {[%clk
0:00:09.7]} 83... Kc3 {[%clk 0:00:08.3]} 84. Bf5 {[%clk 0:00:10.6]} 84... Ba3+
{[%clk 0:00:08.8]} 85. Kb1 {[%clk 0:00:10.4]} 85... Rb2+ {[%clk 0:00:09.7]} 86.
Ka1 {[%clk 0:00:11.3]} 86... Bc5 {[%clk 0:00:10.6]} 87. Be6 {[%clk 0:00:12]}
87... Bd4 {[%clk 0:00:11.5]} 88. Bc4 {[%clk 0:00:12.2]} 88... Kb4 {[%clk
0:00:12.4]} 89. Bd3 {[%clk 0:00:11.5]} 89... Ka3 {[%clk 0:00:13.3]} 90. Bc4
{[%clk 0:00:11.7]} 90... Rb3# {[%clk 0:00:14.2]} 0-1